bitfinex-derivatives/quotes_SOLF0:USTF0_20241217
["timestamp","ask_amount","ask_price","bid_price","bid_amount"]
[1734462801470,2.2011,227.12,227.07,2.5]
[1734462802669,5.90603424,227.14,227.08,5.90603424]
[1734462802869,2.201,227.13,227.08,5.90603424]
[1734462803467,2.2009,227.15,227.09,2.2014]
[1734462803671,2.1928,227.25,227.12,5.90603424]
[1734462803865,5.90603424,227.15,227.09,2.8761]
[1734462804071,5.90603424,227.11,227.08,2.5]
[1734462804272,2.2014,227.09,227.06,2.9362]
[1734462804573,5.90603424,227.11,227.06,2.9362]
[1734462805465,2.5,227.16,227.06,2.9362]
[1734462805673,5.90603424,227.12,227.06,2.9362]
[1734462805870,2.2012,227.12,227.07,5.90603424]
[1734462806172,5.90603424,227.16,227.09,5.90603424]
[1734462806367,5.90603424,227.16,227.09,8.40603424]
[1734462806677,5.90603424,227.16,227.09,2.5]
[1734462807069,5.90603424,227.18,227.1,5.90603424]
[1734462807264,5.90603424,227.18,227.12,5.90603424]
[1734462807669,5.90603424,227.2,227.12,5.90603424]
[1734462807971,2.2005,227.18,227.12,8.10713424]
[1734462808475,2.2005,227.18,227.12,2.2011]
[1734462808671,2.2005,227.18,227.13,5.90603424]
[1734462809371,2.2006,227.17,227.13,5.90603424]
[1734462809874,2.2005,227.18,227.13,5.90603424]
[1734462810075,5.90603424,227.22,227.15,5.90603424]
[1734462810868,2.2003,227.2,227.15,5.90603424]
[1734462811767,8.10623424,227.22,227.15,5.90603424]
[1734462811972,5.90603424,227.22,227.15,5.90603424]
[1734462812775,2.2003,227.21,227.15,5.90603424]
[1734462814767,2.2003,227.21,227.15,5.90603424]
[1734462815771,2.2003,227.21,227.15,8.10683424]
[1734462815977,2.2004,227.2,227.15,5.90603424]
[1734462816273,5.90603424,227.22,227.15,5.90603424]
[1734462817274,2.2003,227.2,227.14,2.5]
[1734462817469,2.2003,227.2,227.14,8.40603424]
[1734462817668,5.90603424,227.22,227.14,10.60683424]
[1734462818271,2.2003,227.21,227.14,10.60683424]
[1734462818466,5.90603424,227.22,227.14,10.60683424]
[1734462818668,5.90603424,227.22,227.16,5.90603424]
[1734462819177,2.2003,227.21,227.16,5.90603424]
[1734462820875,2.2004,227.2,227.14,2.5]
[1734462821075,2.2004,227.2,227.14,8.40603424]
[1734462821977,2.2005,227.19,227.14,2.5]
[1734462822179,2.2005,227.19,227.15,5.90603424]
[1734462823184,2.2006,227.18,227.15,5.90603424]
[1734462824183,5.90603424,227.22,227.15,5.90603424]
[1734462824490,2.2009,227.15,227.13,5.5807]
[1734462824785,5.90603424,227.18,227.13,5.5807]
[1734462824981,2.2009,227.15,227.13,5.5807]
[1734462825781,5.90603424,227.2,227.13,5.5807]
[1734462826088,5.90603424,227.22,227.14,5.90603424]
[1734462827280,5.90603424,227.23,227.14,5.90603424]
[1734462828286,5.90603424,227.23,227.16,5.90603424]
[1734462828492,2.2004,227.2,227.16,5.90603424]
[1734462829593,2.2005,227.19,227.14,5.90603424]
[1734462829785,5.90603424,227.23,227.14,5.90603424]
[1734462830094,5.90603424,227.21,227.13,11.48673424]
[1734462830390,2.2007,227.16,227.13,11.48673424]
[1734462830595,5.90603424,227.19,227.11,5.90603424]
[1734462831789,5.90603424,227.17,227.07,762.15626859]
[1734462831990,5.90603424,227.17,227.1,5.90603424]
[1734462832590,5.90603424,227.19,227.12,5.90603424]
[1734462833585,2.201,227.14,227.1,5.90603424]
[1734462837405,2.201,227.14,227.08,2.48]
[1734462837704,2.201,227.14,227.1,5.90603424]
[1734462839305,2.201,227.13,227.1,5.90603424]
[1734462839605,5.90603424,227.17,227.1,5.90603424]
[1734462840295,2.201,227.13,227.09,2.48]
[1734462840501,5.90603424,227.13,227.06,2.48]
[1734462840698,5.90603424,227.11,227.06,2.48]
[1734462840903,2.2016,227.07,227.06,2.48]
[1734462841499,2.2016,227.07,227.03,5.90603424]
[1734462842197,2.48,227.16,227.02,2.48]
[1734462842198,2.201,227.13,227.05,5.90603424]
[1734462842403,5.90603424,227.15,227.07,5.90603424]
[1734462842798,5.90603424,227.13,227.07,5.90603424]
[1734462843505,5.90603424,227.15,227.07,5.90603424]
[1734462844106,2.2012,227.11,227.07,5.90603424]
[1734462845609,5.90603424,227.15,227.07,5.90603424]
[1734462846002,5.90603424,227.17,227.09,5.90603424]
[1734462846408,2.2012,227.12,227.09,5.90603424]
[1734462846609,5.90603424,227.13,227.04,765.2189259]
[1734462846811,2.2017,227.07,227.04,5.90603424]
[1734462847008,5.90603424,227.11,227.02,434.56998956]
[1734462847308,5.90603424,227.11,227.03,5.90603424]
[1734462847505,2.2014,227.09,227.03,5.90603424]
[1734462847712,5.90603424,227.11,227.03,5.90603424]
[1734462848307,5.90603424,227.09,227.01,2.5]
[1734462848516,5.90603424,227.09,227.02,5.90603424]
[1734462849010,2.2017,227.06,227.02,5.90603424]
[1734462849405,2.2018,227.05,227.02,5.90603424]
[1734462850008,2.2016,227.07,227.04,5.90603424]
[1734462850204,5.90603424,227.13,227.06,5.90603424]
[1734462850509,5.90603424,227.07,226.99,765.7720259]
[1734462850706,18.5495692,227.23,226.98,48.68606684]
[1734462850707,5.90603424,227.03,226.98,48.68606684]
[1734462850908,5.90603424,227.03,226.96,2.48]
[1734462851310,2.2024,226.99,226.96,2.48]
[1734462851703,5.90603424,227.01,226.93,5.90603424]
[1734462852512,2.2026,226.98,226.93,5.90603424]
[1734462852904,2.2024,226.99,226.95,5.90603424]
[1734462853312,2.2024,226.99,226.92,2.8866]
[1734462853313,2.48,227.07,226.97,5.90603424]
[1734462853615,2.2021,227.02,226.97,5.90603424]
[1734462853914,5.90603424,227.04,226.97,5.90603424]
[1734462854310,2.2021,227.02,226.97,5.90603424]
[1734462855016,5.90603424,227.04,226.97,5.90603424]
[1734462855212,2.202,227.03,226.97,5.90603424]
[1734462855514,2.1964,227.12,226.96,2.48]
[1734462855515,2.1964,227.12,227.01,5.90603424]
[1734462855709,5.90603424,227.08,227.01,8.38603424]
[1734462855915,5.90603424,227.1,227.03,5.90603424]
[1734462856314,5.90603424,227.13,227.05,5.90603424]
[1734462857006,5.37059108,227.12,227.05,5.90603424]
[1734462858416,2.2013,227.11,227.05,5.90603424]
[1734462858815,2.2013,227.1,227.05,5.90603424]
[1734462862718,2.2014,227.09,227.05,5.90603424]
[1734462863519,5.90603424,227.09,227.02,6.0472]
[1734462863718,5.90603424,227.07,227.02,6.0472]
[1734462864115,5.90603424,227.07,227.0,203.25568202]
[1734462864116,2.202,227.03,227.0,8.38603424]
[1734462864315,2.202,227.03,227.0,5.90603424]
[1734462865521,8.38603424,227.1,227.02,5.90603424]
[1734462865725,5.90603424,227.1,227.04,5.90603424]
[1734462866017,2.2015,227.08,227.04,5.90603424]
[1734462867523,2.2016,227.07,227.04,5.90603424]
[1734462870221,5.90603424,227.1,227.04,5.90603424]
[1734462870923,2.2015,227.08,227.04,5.90603424]
[1734462871524,5.90603424,227.1,227.04,5.90603424]
[1734462872622,2.2013,227.1,227.04,5.90603424]
[1734462873324,4.4001,227.24,227.06,5.90603424]
[1734462873624,5.90603424,227.18,227.1,5.90603424]
[1734462873829,2.48,227.25,227.14,5.90603424]
[1734462874023,2.2002,227.21,227.16,5.90603424]
[1734462874321,5.32116217,227.21,227.16,5.90603424]
[1734462874522,5.90603424,227.23,227.16,5.90603424]
[1734462874724,2.2003,227.21,227.16,5.90603424]
[1734462875022,2.48,227.27,227.19,5.90603424]
[1734462875327,5.28679116,227.26,227.23,5.90603424]
[1734462875525,5.90603424,227.31,227.25,5.90603424]
[1734462876024,5.90603424,227.31,227.22,2.9166]
[1734462876025,2.1995,227.29,227.22,2.9166]
[1734462876327,5.20800221,227.3,227.22,2.9166]
[1734462876524,9.20783116,227.28,227.22,2.9166]
[1734462877020,11.68783116,227.32,227.22,2.9166]
[1734462877220,5.40503628,227.33,227.24,9.20783116]
[1734462877416,30.3989746,227.36,227.24,9.20783116]
[1734462877816,2.1992,227.33,227.24,11.40773116]
[1734462878725,9.20783116,227.38,227.24,9.20783116]
[1734462878922,2.48,227.39,227.27,9.20783116]
[1734462879122,0.23945,227.43,227.3,9.20783116]
[1734462879327,0.23945,227.43,227.36,9.20783116]
[1734462879522,9.20783116,227.59,227.39,9.20783116]
[1734462879523,5.20154137,227.5,227.39,9.20783116]
[1734462879722,5.20154137,227.5,227.4,2.48]
[1734462880118,9.20783116,227.49,227.4,2.48]
[1734462881531,2.1979,227.45,227.4,2.48]
[1734462881726,2.1979,227.45,227.38,2.9209]
[1734462882033,2.1979,227.45,227.39,2.48]
[1734462882226,2.198,227.44,227.39,2.48]
[1734462882431,9.20783116,227.46,227.37,5.4328]
[1734462882828,5.20154137,227.5,227.39,9.20783116]
[1734462883033,5.20154137,227.5,227.42,9.20783116]
[1734462883227,5.20154137,227.5,227.43,2.48]
[1734462883432,5.20154137,227.5,227.43,5.5261]
[1734462883727,7.39904137,227.5,227.43,5.5261]
[1734462883934,5.20154137,227.5,227.43,5.5261]
[1734462884524,9.20783116,227.55,227.43,5.5261]
[1734462884929,11.68783116,227.58,227.44,9.20783116]
[1734462885130,2.1972,227.53,227.44,9.20783116]
[1734462885527,9.20783116,227.58,227.44,9.20783116]
[1734462885731,5.36265161,227.57,227.47,9.20783116]
[1734462885931,5.36265161,227.57,227.48,5.5004]
[1734462886130,2.197,227.55,227.48,5.5004]
[1734462886531,5.36265161,227.57,227.48,5.5004]
[1734462888032,2.197,227.55,227.48,5.5004]
[1734462888235,5.36265161,227.57,227.49,9.20783116]
[1734462888735,9.20783116,227.56,227.43,3.0461]
[1734462888931,9.20783116,227.56,227.44,2.8488]
[1734462889333,2.1974,227.51,227.44,2.8488]
[1734462889932,2.1974,227.5,227.44,2.8488]
[1734462892643,9.20783116,227.56,227.44,2.8488]
[1734462892940,9.20783116,227.56,227.45,2.48]
[1734462893129,2.1972,227.53,227.45,2.48]
[1734462893330,9.20783116,227.56,227.45,2.48]
[1734462895042,2.1974,227.51,227.45,2.48]
[1734462895440,5.36265161,227.57,227.45,2.48]
[1734462895441,2.1972,227.53,227.45,2.48]
[1734462896143,2.1972,227.52,227.45,2.48]
[1734462896438,5.36265161,227.57,227.45,2.48]
[1734462896637,2.1974,227.5,227.45,2.48]
[1734462897242,2.1975,227.49,227.45,2.48]
[1734462897444,9.20783116,227.56,227.45,2.48]
[1734462897839,2.1973,227.52,227.45,2.48]
[1734462898943,5.36265161,227.57,227.45,2.48]
[1734462899242,9.20783116,227.59,227.45,2.48]
[1734462899644,2.1973,227.51,227.46,2.48]
[1734462900344,9.20783116,227.59,227.46,2.48]
[1734462900546,9.20783116,227.53,227.26,19.91175527]
[1734462900743,9.20783116,227.5,227.36,17.52333116]
[1734462900945,2.1978,227.46,227.36,19.72203116]
[1734462901140,9.20783116,227.5,227.36,19.72203116]
[1734462901348,9.20783116,227.5,227.36,17.52333116]
[1734462901551,2.1982,227.42,227.36,22.75096997]
[1734462901748,2.1982,227.42,227.37,2.48]
[1734462902245,9.20783116,227.47,227.37,2.48]
[1734462902545,9.20783116,227.44,227.36,5.8355]
[1734462902745,2.1983,227.42,227.35,2.48]
[1734462902946,9.20783116,227.41,227.35,2.48]
[1734462903442,2.1989,227.35,227.3,5.7987]
[1734462903648,9.20783116,227.41,227.3,8.2787]
[1734462905845,2.199,227.34,227.3,8.2787]
[1734462906855,9.20783116,227.41,227.3,8.2787]
[1734462907044,2.1988,227.36,227.3,8.2787]
[1734462907251,9.20783116,227.41,227.3,8.2787]
[1734462908057,2.1986,227.38,227.3,17.48653116]
[1734462908250,9.20783116,227.44,227.3,17.48653116]
[1734462908444,2.48,227.47,227.3,19.68583116]
[1734462908653,2.1986,227.39,227.3,19.68583116]
[1734462908848,5.20694667,227.41,227.3,19.68583116]
[1734462909250,5.20694667,227.41,227.3,5.7987]
[1734462909552,9.20783116,227.39,227.3,8.2787]
[1734462909853,2.1991,227.34,227.3,8.2787]
[1734462910045,9.20783116,227.39,227.3,5.7987]
[1734462910247,9.20783116,227.36,227.26,227.20530936]
[1734462910455,2.1995,227.29,227.26,179.62146267]
[1734462910652,2.48,227.35,227.26,2.48]
[1734462910849,9.20783116,227.33,227.26,2.48]
[1734462911050,9.20783116,227.33,227.24,5.94798083]
[1734462911251,9.20783116,227.33,227.23,236.67125183]
[1734462912051,2.48,227.35,227.21,236.66387315]
[1734462912052,9.20783116,227.3,227.21,236.66387315]
[1734462912254,9.20783116,227.27,227.2,413.28362455]
[1734462912450,9.20783116,227.27,227.2,236.67125183]
[1734462912657,9.20783116,227.27,227.18,5.94798083]
[1734462912856,9.20783116,227.3,227.16,2.48]
[1734462913057,2.48,227.31,227.18,9.20783116]
[1734462913265,9.45793116,227.34,227.21,9.20783116]
[1734462913456,9.20783116,227.34,227.22,2.48]
[1734462913660,2.1993,227.31,227.22,4.6801]
[1734462914254,11.68783116,227.36,227.22,4.6801]
[1734462914759,11.68783116,227.36,227.23,636.47548166]
[1734462914960,9.20783116,227.36,227.23,113.99797858]
[1734462915261,2.1989,227.35,227.24,9.20783116]
[1734462915457,11.68783116,227.39,227.25,5.7705]
[1734462915656,9.20783116,227.39,227.25,5.7705]
[1734462915957,9.20783116,227.39,227.25,7.9703]
[1734462916157,9.20783116,227.39,227.25,765.18276545]
[1734462916462,2.48,227.4,227.27,9.20783116]
[1734462916658,5.20694667,227.41,227.3,9.20783116]
[1734462916958,5.20694667,227.41,227.31,2.48]
[1734462917960,9.20783116,227.39,227.31,2.48]
[1734462918159,9.20783116,227.39,227.27,2.48]
[1734462918464,2.1992,227.33,227.27,2.48]
[1734462918862,9.20783116,227.39,227.27,2.48]
[1734462919459,2.1991,227.34,227.27,2.48]
[1734462919658,9.20783116,227.39,227.27,2.48]
[1734462920662,9.20783116,227.36,227.25,667.57135726]
[1734462920864,9.20783116,227.36,227.26,2.48]
[1734462922860,2.48,227.38,227.26,2.48]
[1734462924067,9.20783116,227.36,227.26,2.48]
[1734462924260,2.1996,227.28,227.25,5.7705]
[1734462924462,9.20783116,227.33,227.25,5.7705]
[1734462924664,2.1991,227.33,227.25,7.9703]
[1734462924962,2.48,227.38,227.25,5.7705]
[1734462925360,9.20783116,227.33,227.25,8.2505]
[1734462925661,9.20783116,227.33,227.25,5.7705]
[1734462926263,2.1994,227.3,227.25,5.7705]
[1734462926581,9.20783116,227.36,227.25,5.7705]
[1734462927367,2.1993,227.31,227.25,8.2505]
[1734462928762,9.20783116,227.36,227.25,8.2505]
[1734462928960,9.20783116,227.33,227.25,8.2505]
[1734462930369,9.20783116,227.36,227.25,8.2505]
[1734462931363,9.20783116,227.36,227.23,353.75383539]
[1734462931671,9.20783116,227.33,227.24,2.48]
[1734462931865,2.1999,227.25,227.2,5.5231]
[1734462932169,2.1999,227.25,227.2,3.0431]
[1734462935665,2.1999,227.25,227.18,4.6805]
[1734462935868,2.1999,227.25,227.18,2.48]
[1734462937369,2.1999,227.24,227.18,2.48]
[1734462938173,2.1999,227.25,227.18,4.6805]
[1734462939063,9.20783116,227.33,227.19,9.20783116]
[1734462939265,9.20783116,227.36,227.22,9.20783116]
[1734462939467,9.20783116,227.36,227.23,5.4142]
[1734462939671,5.17699963,227.34,227.25,2.1998]
[1734462940371,2.1992,227.32,227.25,2.1998]
[1734462940569,2.1992,227.32,227.26,2.9535]
[1734462940972,2.1993,227.31,227.26,2.9535]
[1734462941572,5.17699963,227.34,227.26,2.9535]
[1734462941974,5.17699963,227.34,227.26,5.4335]
[1734462942469,2.1992,227.32,227.26,5.4335]
[1734462943475,5.17699963,227.34,227.26,2.48]
[1734462943666,2.1994,227.3,227.26,2.48]
[1734462944374,9.20783116,227.3,227.22,8.2946]
[1734462944577,9.20783116,227.33,227.22,8.2946]
[1734462944970,5.17699963,227.34,227.22,17.50243116]
[1734462945276,5.17699963,227.34,227.22,423.16086122]
[1734462945573,2.1992,227.32,227.25,2.1998]
[1734462946873,5.17699963,227.34,227.23,2.2]
[1734462947076,9.20783116,227.33,227.23,2.2]
[1734462947373,9.20783116,227.33,227.22,598.71968722]
[1734462947374,2.1996,227.28,227.22,598.71968722]
[1734462947775,9.20783116,227.3,227.22,598.71968722]
[1734462947975,2.1999,227.25,227.22,598.71968722]
[1734462948173,2.1999,227.25,227.22,8.2946]
[1734462948978,2.2,227.24,227.22,5.8146]
[1734462949373,2.2,227.24,227.22,2.8301]
[1734462949677,2.2,227.24,227.19,2.48]
[1734462950174,2.2006,227.17,227.15,1236.80388924]
[1734462950476,2.2006,227.17,227.15,236.66387315]
[1734462950673,9.20783116,227.21,227.13,3.0103]
[1734462950876,2.2007,227.16,227.13,3.0103]
[1734462951968,2.2005,227.19,227.13,3.0103]
[1734462952177,9.20783116,227.27,227.13,12.21813116]
[1734462952478,9.20783116,227.27,227.13,415.81605841]
[1734462952773,2.1999,227.24,227.16,2.2007]
[1734462952979,9.20783116,227.27,227.17,2.48]
[1734462953172,11.68783116,227.3,227.17,2.48]
[1734462953777,2.48,227.3,227.19,9.20783116]
[1734462954379,2.48,227.3,227.2,5.9502]
[1734462955178,9.20783116,227.33,227.2,8.1505]
[1734462955373,7.65699963,227.34,227.22,9.20783116]
[1734462955571,9.20783116,227.33,227.23,2.48]
[1734462956175,2.1996,227.28,227.23,2.48]
[1734462957184,2.1994,227.3,227.22,2.48]
[1734462957381,7.65699963,227.34,227.22,2.48]
[1734462957572,2.199,227.34,227.25,9.20783116]
[1734462958781,2.199,227.34,227.25,11.40763116]
[1734462959383,2.199,227.34,227.25,9.20783116]
[1734462959584,2.199,227.34,227.26,2.1996]
[1734462959882,5.2520836,227.36,227.27,2.48]
[1734462960083,2.1991,227.33,227.27,2.48]
[1734462960583,2.199,227.34,227.27,2.48]
[1734462960784,2.48,227.38,227.27,2.48]
[1734462961479,2.48,227.38,227.27,4.6796]
[1734462961877,9.20783116,227.39,227.27,2.48]
[1734462962085,9.20783116,227.42,227.28,9.20783116]
[1734462962384,11.68783116,227.45,227.31,9.20783116]
[1734462962586,2.1984,227.41,227.33,2.1991]
[1734462963082,2.1984,227.41,227.32,8.3158]
[1734462963481,9.20783116,227.48,227.34,9.20783116]
[1734462963882,9.20783116,227.51,227.37,9.20783116]
[1734462964086,9.20783116,227.51,227.38,5.5188]
[1734462964390,2.1978,227.46,227.38,5.5188]
[1734462964984,9.20783116,227.45,227.38,2.48]
[1734462965180,9.20783116,227.42,227.33,2.9827]
[1734462965488,9.20783116,227.39,227.33,2.9827]
[1734462965687,9.20783116,227.39,227.32,2.9379]
[1734462965986,2.1988,227.36,227.32,2.9379]
[1734462967180,2.1989,227.35,227.32,2.9379]
[1734462967483,9.20783116,227.39,227.3,2.48]
[1734462968181,2.1988,227.36,227.3,2.48]
[1734462968979,9.20783116,227.39,227.3,2.48]
[1734462969187,9.20783116,227.42,227.3,2.48]
[1734462970184,2.1839,227.47,227.3,11.68783116]
[1734462970389,59.54783116,227.59,227.3,11.68783116]
[1734462970390,9.20783116,227.51,227.36,9.20783116]
[1734462970590,9.20783116,227.51,227.37,8.2794]
[1734462970889,2.1977,227.47,227.39,2.1984]
[1734462971090,9.20783116,227.51,227.37,11.1942]
[1734462971482,9.20783116,227.51,227.38,2.1986]
[1734462971889,9.20783116,227.51,227.37,11.1942]
[1734462972087,2.1977,227.48,227.4,2.1984]
[1734462972487,9.20783116,227.51,227.37,11.1942]
[1734462972687,9.20783116,227.45,227.37,8.7142]
[1734462972998,9.20783116,227.45,227.37,5.7994]
[1734462973300,2.1984,227.4,227.37,5.7994]
[1734462973492,9.20783116,227.45,227.37,5.7994]
[1734462974787,5.36019165,227.5,227.37,8.2794]
[1734462975297,6.872,227.66,227.45,9.20783116]
[1734462975484,9.20783116,227.62,227.46,2.48]
[1734462975690,2.1968,227.57,227.48,9.20783116]
[1734462975990,2.1968,227.57,227.47,8.2454]
[1734462975991,14.45354299,227.59,227.47,6.0478]
[1734462976191,2.1968,227.56,227.47,8.2455]
[1734462976390,5.24571183,227.59,227.47,6.0478]
[1734462976887,7.44231183,227.59,227.49,2.1975]
[1734462977084,5.24571183,227.59,227.47,6.0478]
[1734462977690,5.24571183,227.59,227.48,9.20783116]
[1734462977891,9.20783116,227.56,227.45,262.79406602]
[1734462978096,14.70628986,227.57,227.42,17.18628986]
[1734462978291,5.24571183,227.59,227.46,14.70628986]
[1734462978499,7.44231183,227.59,227.49,2.1975]
[1734462978692,5.24571183,227.59,227.5,2.48]
[1734462978995,2.197,227.55,227.46,16.90408986]
[1734462979197,5.24571183,227.59,227.49,2.48]
[1734462979494,2.1967,227.58,227.49,2.48]
[1734462980289,2.1967,227.58,227.49,4.6774]
[1734462981692,2.1965,227.6,227.52,2.1972]
[1734462981890,0.2399,227.67,227.5,9.1299]
[1734462982093,0.2399,227.67,227.5,23.83618986]
[1734462982290,0.2399,227.67,227.5,212.43314232]
[1734462982492,0.2399,227.67,227.5,281.88012821]
[1734462982692,5.39138478,227.63,227.5,6.0729]
[1734462983099,2.1967,227.58,227.5,8.2703]
[1734462983295,0.2399,227.67,227.5,20.77918986]
[1734462983499,2.48,227.68,227.5,428.69405162]
[1734462983801,0.2372,227.72,227.5,281.88012821]
[1734462983995,0.2372,227.72,227.54,14.70628986]
[1734462984192,0.2372,227.72,227.55,2.48]
[1734462985199,4.6592,227.73,227.56,2.9364]
[1734462985493,2.1792,227.73,227.56,2.9364]
[1734462985699,0.2372,227.8,227.58,14.70628986]
[1734462985700,14.70628986,227.78,227.58,14.70628986]
[1734462986796,0.2372,227.8,227.58,14.70628986]
[1734462986797,2.1957,227.68,227.58,14.70628986]
[1734462986998,4.3872,227.9,227.62,14.70628986]
[1734462987200,52.53746545,227.83,227.63,5.9626]
[1734462987495,2.195,227.76,227.66,2.1959]
[1734462987895,2.195,227.75,227.66,2.1959]
[1734462988495,2.1951,227.74,227.66,2.1959]
[1734462988900,5.15372305,227.76,227.64,2.48]
[1734462989105,2.1949,227.77,227.67,14.70628986]
[1734462989306,37.83117559,227.83,227.64,123.31997648]
[1734462989307,40.31117559,227.83,227.64,123.31997648]
[1734462989504,5.32781749,227.78,227.64,90.62998236]
[1734462989802,5.32781749,227.78,227.63,12.00459882]
[1734462989803,5.32781749,227.78,227.65,2.48]
[1734462990400,2.1952,227.73,227.65,4.6759]
[1734462990596,5.32781749,227.78,227.65,2.48]
[1734462991104,2.1952,227.74,227.68,2.1957]
[1734462992205,40.31117559,227.83,227.69,2.1956]
[1734462992403,40.31117559,227.83,227.7,2.48]
[1734462992905,37.83117559,227.83,227.7,2.48]
[1734462993098,5.27554815,227.81,227.7,2.48]
[1734462993302,5.27554815,227.81,227.71,2.1954]
[1734462993500,37.83117559,227.83,227.7,2.48]
[1734462994301,2.48,227.87,227.7,2.48]
[1734462994510,17.11518986,227.89,227.7,2.48]
[1734462994706,19.59518986,227.89,227.7,2.48]
[1734462995106,2.1943,227.83,227.7,2.48]
[1734462995407,5.19025217,227.86,227.7,2.48]
[1734462995601,14.70628986,227.85,227.69,14.70628986]
[1734462995807,14.70628986,227.85,227.71,2.48]
[1734462996005,2.1946,227.8,227.72,2.1953]
[1734462996712,14.70628986,227.85,227.71,4.6754]
[1734462997102,2.1947,227.79,227.71,4.6754]
[1734462997306,14.70628986,227.85,227.72,2.1953]
[1734462997507,14.70628986,227.85,227.71,2.48]
[1734462997903,2.48,227.84,227.66,3.0578]
[1734462998110,9.17150214,227.79,227.67,2.48]
[1734462998308,2.1954,227.72,227.67,2.48]
[1734462998604,9.17150214,227.76,227.67,2.48]
[1734462999008,2.1953,227.72,227.67,2.48]
[1734462999402,9.17150214,227.76,227.67,2.48]
[1734462999602,2.1952,227.73,227.67,2.48]
[1734463000311,2.1953,227.72,227.67,2.48]
[1734463001014,9.17150214,227.76,227.67,2.48]
[1734463001214,2.1953,227.73,227.67,2.48]
[1734463001613,9.17150214,227.82,227.68,9.17150214]
[1734463001810,11.65150214,227.85,227.71,9.17150214]
[1734463002015,9.17150214,227.82,227.72,2.48]
[1734463002214,2.1951,227.75,227.7,2.48]
[1734463002411,9.17150214,227.79,227.7,2.48]
[1734463004418,2.1952,227.73,227.7,2.48]
[1734463005311,9.17150214,227.79,227.7,2.48]
[1734463007417,2.1952,227.73,227.7,2.48]
[1734463007818,9.17150214,227.76,227.63,5.9626]
[1734463008019,9.17150214,227.73,227.64,2.48]
[1734463008420,9.17150214,227.73,227.63,8.4426]
[1734463009221,2.1957,227.68,227.63,8.4426]
[1734463009817,2.1954,227.71,227.63,10.6387]
[1734463010022,2.1954,227.71,227.63,8.4426]
[1734463011521,2.1954,227.71,227.64,2.1961]
[1734463011722,2.1953,227.72,227.64,2.1961]
[1734463012417,9.17150214,227.76,227.63,8.4426]
[1734463012615,14.25000214,227.79,227.65,9.17150214]
[1734463012924,14.25000214,227.79,227.63,8.4426]
[1734463013125,9.17150214,227.73,227.63,8.4426]
[1734463013515,9.17150214,227.7,227.56,12.13090214]
[1734463013717,9.17150214,227.7,227.57,2.48]
[1734463013914,2.196,227.65,227.57,4.6767]
[1734463014115,2.196,227.65,227.57,2.1967]
[1734463014320,2.196,227.65,227.56,17.47787647]
[1734463014321,9.17150214,227.7,227.56,12.13090214]
[1734463014520,9.17150214,227.7,227.58,2.48]
[1734463014926,2.1962,227.63,227.58,2.48]
[1734463015328,9.17150214,227.7,227.58,2.48]
[1734463016026,2.196,227.66,227.58,4.6766]
[1734463016918,2.1957,227.68,227.6,2.1964]
[1734463017119,11.65150214,227.73,227.59,9.17150214]
[1734463017320,9.17150214,227.73,227.59,9.17150214]
[1734463017524,2.1955,227.7,227.63,2.1961]
[1734463017827,2.1955,227.7,227.64,2.48]
[1734463018722,9.17150214,227.76,227.6,145.00797177]
[1734463018929,9.17150214,227.66,227.55,2.8639]
[1734463019424,2.1965,227.6,227.55,2.8639]
[1734463019619,9.17150214,227.66,227.55,2.8639]
[1734463020520,2.48,227.68,227.49,2.8878]
[1734463020521,9.17150214,227.6,227.49,2.8878]
[1734463020723,11.65150214,227.6,227.49,2.8878]
[1734463020932,9.17150214,227.54,227.46,2.8634]
[1734463021134,2.1975,227.5,227.46,2.8634]
[1734463021339,9.17150214,227.57,227.46,2.8634]
[1734463021833,2.48,227.62,227.48,9.17150214]
[1734463022036,0.4366,227.65,227.49,5.5504]
[1734463022233,2.1964,227.62,227.51,2.1973]
[1734463022438,0.4366,227.65,227.51,2.1973]
[1734463023039,2.1965,227.61,227.51,2.1973]
[1734463023242,2.1965,227.61,227.49,5.5504]
[1734463023540,17.17389919,227.66,227.5,228.72478269]